Workbook

Sheet 一般公共预算
A1: 附件1
A2: 沅江市2025年一般公共预算表
A3: 2024-11-20
H4: 单位：万元
A5: 收 入 项 目 | B5: 2024年预算数 | C5: 2024预计执行数 | D5: 2025年预算数 | E5: 支 出 项 目 | F5: 2024年预算数 | G5: 2024预计执行数 | H5: 2025年预算数 | K5: 2023决算数
A6: 1.税收收入 | B6: =SUM(B7:B21) -> 79855 | C6: 80611 | D6: =SUM(D7:D21) -> 85448 | E6: 一、一般公共服务 | F6: 56011 | G6: 53011 | H6: 53011 | I6: =H6-F6 -> -3000 | J6: =I6/F6 -> -5.36% | K6: 56581 | L6: =G6-K6 -> -3570 | M6: =L6/K6 -> -0.06309538538
A7: 增值税 | B7: 29087 | C7: 28481 | D7: 34111 | E7: 二、国防 | F7: 298 | G7: 298 | H7: 298 | I7: =H7-F7 -> 0 | J7: =I7/F7 -> 0.00% | K7: 41 | L7: =G7-K7 -> 257 | M7: =L7/K7 -> 6.268292683
A8: 营业税 | C8: 0 | E8: 三、公共安全 | F8: 18236 | G8: 17236 | H8: 16236 | I8: -2000 | J8: -10.97% | K8: 21275 | L8: -4039 | M8: -0.1898472385
A9: 企业所得税 | B9: 4032 | C9: 3500 | D9: 4217 | E9: 四、教育 | F9: 83327 | G9: 97827 | H9: 84993 | I9: 1666 | J9: 2.00% | K9: 97535 | L9: 292 | M9: 0.002993797098
A10: 个人所得税 | B10: 1064 | C10: 1100 | D10: 1167 | E10: 五、科学技术 | F10: 6319 | G10: 40619 | H10: 16319 | I10: 10000 | J10: 158.25% | K10: 5853 | L10: 34766 | M10: 5.939859901
A11: 资源税 | B11: 9900 | C11: 6500 | D11: 11615 | E11: 六、文化旅游体育与传媒 | F11: 3348 | G11: 3348 | H11: 3414 | I11: 66 | J11: 1.97% | K11: 4343 | L11: -995 | M11: -0.2291043058
A12: 城市维护建设税 | B12: 3800 | C12: 4570 | D12: 4846 | E12: 七、社会保障和就业 | F12: 95684 | G12: 95684 | H12: 97597 | I12: 1913 | J12: 2.00% | K12: 93786 | L12: 1898 | M12: 0.02023756211
A13: 房产税 | B13: 4200 | C13: 6750 | D13: 7159 | E13: 八、卫生健康 | F13: 36114 | G13: 36114 | H13: 36956 | I13: 842 | J13: 2.33% | K13: 31536 | L13: 4578 | M13: 0.1451674277
A14: 印花税 | B14: 1000 | C14: 650 | D14: 1195 | E14: 九、节能环保 | F14: 11672 | G14: 11672 | H14: 11680 | I14: 8 | J14: 0.07% | K14: 17954 | L14: -6282 | M14: -0.349894174
A15: 城镇土地使用税 | B15: 1260 | C15: 3100 | D15: 3288 | E15: 十、城乡社区 | F15: 10751 | G15: 44421 | H15: 11266 | I15: 515 | J15: 4.79% | K15: 25819 | L15: 18602 | M15: 0.720477168
A16: 土地增值税 | B16: 12000 | C16: 4400 | D16: 4666 | E16: 十一、农林水 | F16: 102046 | G16: 116046 | H16: 104386 | I16: 2340 | J16: 2.29% | K16: 115848 | L16: 198 | M16: 0.001709136109
A17: 车船税 | B17: 1500 | C17: 1650 | D17: 1749 | E17: 十二、交通运输 | F17: 27174 | G17: 21174 | H17: 18076 | I17: -9098 | J17: -33.48% | K17: 32518 | L17: -11344 | M17: -0.348852943
A18: 耕地占用税 | B18: 900 | C18: 13850 | D18: 5008 | E18: 十三、资源勘探信息 | F18: 280 | G18: 427 | H18: 427 | I18: 147 | J18: 52.50% | K18: 304 | L18: 123 | M18: 0.4046052632
A19: 契税 | B19: 11000 | C19: 6000 | D19: 6363 | E19: 十四、商业服务业 | F19: 1821 | G19: 2391 | H19: 2010 | I19: 189 | J19: 10.38% | K19: 2428 | L19: -37 | M19: -0.01523887974
A20: 环境保护税 | B20: 112 | C20: 60 | D20: 64 | E20: 十五、金融支出 | G20: 131 | I20: 0 | K20: 6 | L20: 125 | M20: 20.83333333
A21: 其他税收收入 | C21: 0 | E21: 十六、自然资源海洋气象 | F21: 3531 | G21: 6515 | H21: 3601 | I21: 70 | J21: 1.98% | K21: 6391 | L21: 124 | M21: 0.01940228446
A22: 2.非税收入 | B22: =SUM(B23:B28) -> 81095 | C22: 80540 | D22: =SUM(D23:D28) -> 85373 | E22: 十七、住房保障 | F22: 14341 | G22: 14341 | H22: 14827 | I22: 486 | J22: 3.39% | K22: 24184 | L22: -9843 | M22: -0.4070046312
A23: 专项收入 | B23: 3980 | C23: 3980 | D23: 4179 | E23: 十八、粮油物资储备 | F23: 4453 | G23: 4453 | H23: 4453 | I23: 0 | J23: 0.00% | K23: 3785 | L23: 668 | M23: 0.1764861295
A24: 行政事业性收费收入 | B24: 5520 | C24: 5520 | D24: 5796 | E24: 十九、灾害防治及应急管理 | F24: 1603 | G24: 2075 | H24: 1735 | I24: 132 | J24: 8.23% | K24: 2837 | L24: -762 | M24: -0.2685935848
A25: 罚没收入 | B25: 7500 | C25: 21000 | D25: 7081 | E25: 二十、其他支出 | F25: 17 | G25: 82 | H25: 17 | I25: 0 | J25: 0.00% | K25: 1935 | L25: -1853 | M25: -0.957622739
A26: 国有资本经营收入 | E26: 二十一、债务付息支出 | F26: 12060 | G26: 12060 | H26: 11648 | I26: -412 | J26: -3.42% | K26: 11575 | L26: 485 | M26: 0.04190064795
A27: 国有资源（资产）有偿使用收入 | B27: 58000 | C27: 44500 | D27: 62500
A28: 其他收入 | B28: 6095 | C28: 5540 | D28: 5817
A30: 公共预算收入 | B30: =B6+B22 -> 160950 | C30: =C6+C22 -> 161151 | D30: =D6+D22 -> 170821 | E30: 公共预算支出 | F30: =SUM(F5:F28) -> 489086 | G30: =SUM(G5:G28) -> 579925 | H30: =SUM(H5:H28) -> 492950
A31: 返还性收入 | B31: 7869 | C31: 7931 | D31: 7931
A32: 一般性转移支付收入 | B32: 257453 | C32: 274525 | D32: 257528
A33: 专项转移支付收入 | B33: 30000 | C33: 49938 | D33: 30000 | E33: 上解支出 | F33: 7186 | G33: 10295 | H33: 10295
A34: 调入预算稳定调节基金 | C34: 885 | E34: 补助市县支出
A35: 上年结余收入 | C35: 78134 | E35: 地方政府债券还本支出 | G35: 49524 | H35: 5035
A36: 调入资金 | B36: 40000 | C36: 42000 | D36: 42000
A37: 转贷地方政府债券收入 | C37: 56900 | E37: 年终滚存结余 | G37: 31720
A38: 其中：1、新增债券 | C38: 7500 | E38: 减：结转下年支出
A39: 2、再融资债券 | C39: 49400
A40: 预算总收入 | B40: =B30+SUM(B31:B37) -> 496272 | C40: =C30+SUM(C31:C37) -> 671464 | D40: =D30+SUM(D31:D37) -> 508280 | E40: 预算总支出 | F40: =F30+SUM(F33:F36) -> 496272 | G40: =G30+G33+G35+G37 -> 671464 | H40: =H30+SUM(H33:H37) -> 508280

Sheet 政府性基金预算
A1: 附件2
A2: 沅江市2025年政府性基金预算表
H3: 单位：万元
A4: 收 入 | E4: 支 出
A5: 项 目 | B5: 2024预算数 | C5: 2024预计执行数 | D5: 2025预算数 | E5: 项 目 | F5: 2024预算数 | G5: 2024预计执行数 | H5: 2025预算数
A6: 一、农网还贷资金收入 | E6: 一、文化体育与传媒支出
A7: 二、海南省高等级公路车辆通行附加费收入 | E7: 二、社会保障和就业支出 | F7: 4600
A8: 三、港口建设费收入 | E8: 三、节能环保支出
A9: 四、散装水泥专项资金收入 | E9: 四、城乡社区支出 | F9: 60775 | G9: 16775 | H9: =H10+H28+H30 -> 31830
A10: 五、新型墙体材料专项基金收入 | E10: 国有土地使用权出让收入安排的支出 | F10: 58195 | G10: =SUM(G11:G21) -> 7695 | H10: =SUM(H11:H21) -> 29250
A11: 六、旅游发展基金收入 | E11: 征地和拆迁补偿支出 | F11: 500 | H11: 500
A12: 七、新菜地开发建设基金收入 | E12: 土地开发支出
A13: 八、新增建设用地土地有偿使用费收入 | E13: 城市建设支出 | F13: 5000 | G13: 3000 | H13: 3000
A14: 九、南水北调工程建设基金收入 | E14: 农村基础设施建设支出 | F14: 4200 | G14: 2200 | H14: 2400
A15: 十、城市公用事业附加收入 | E15: 补助被征地农民支出
A16: 十一、国有土地收益基金收入 | E16: 土地出让业务支出 | F16: 1050 | G16: 1050 | H16: 1050
A17: 十二、农业土地开发资金收入 | E17: 廉租住房支出
A18: 十三、国有土地使用权出让收入 | B18: 60000 | C18: 20000 | D18: 30000 | E18: 支付破产或改制企业职工安置费
A19: 土地出让价款收入 | B19: 60000 | C19: 20000 | D19: 30000 | E19: 棚户区改造支出
A20: 补缴的土地价款 | E20: 公共租赁住房支出
A21: 划拨土地收入 | E21: 其他国有土地使用权出让收入安排的支出 | F21: 47445 | G21: 1445 | H21: 22300
A22: 缴纳新增建设用地土地有偿使用费 | E22: 城市公用事业附加安排的支出 | F22: 0
A23: 其他土地出让收入 | E23: 城市公共设施
A24: 十四、大中型水库库区基金收入 | E24: 其他城市公用事业附加安排的支出
A25: 十五、彩票公益金收入 | B25: 0 | E25: 国有土地收益基金支出 | F25: 0
A26: 福利彩票公益金收入 | E26: 其他国有土地收益基金支出
A27: 体育彩票公益金收入 | E27: 农业土地开发资金支出
A28: 十六、城市基础设施配套费收入 | B28: 1380 | C28: 1380 | D28: 1380 | E28: 城市基础设施配套费安排的支出 | F28: 1380 | G28: 1380 | H28: 1380
A29: 十七、污水处理费收入 | B29: 1200 | C29: 1200 | D29: 1200 | E29: 城市公共设施 | F29: 1380 | G29: 1380 | H29: 1380
A30: 十八、国家重大水利工程建设基金收入 | B30: 0 | E30: 污水处理费安排的支出 | F30: 1200 | G30: 1200 | H30: 1200
A31: 南水北调工程建设资金 | E31: 五、农林水支出 | G31: 2000 | H31: 4600
A32: 三峡工程后续工作资金 | E32: 六、交通运输支出 | F32: 55 | G32: 55 | H32: 55
A33: 省级重大水利工程建设资金 | E33: 车辆通行费安排的支出 | F33: 55 | G33: 55 | H33: 55
A34: 十九、车辆通行费 | B34: 55 | C34: 55 | D34: 55 | E34: 其他车辆通行费安排的支出 | F34: 55 | G34: 55 | H34: 55
A35: 二十、其他政府性基金收入 | B35: 59448 | C35: 53448 | D35: =SUM(D36:D40) -> 71752 | E35: 七、资源勘探信息等支出 | F35: 0
A36: 旱改水指标交易 | B36: 10000 | C36: 4000 | D36: 10000 | E36: 散装水泥专项资金支出 | F36: 0
A37: 其他砂石收入 | B37: 20000 | C37: 20000 | D37: 10000 | E37: 其他散装水泥专项资金支出
A38: 砂石矿开采权出让收入 | B38: 1000 | C38: 1000 | D38: 5500 | E38: 八、地方政府专项债务付息支出 | F38: 8995 | G38: 8995 | H38: 10942
A39: 专项债券资金收益 | B39: 8448 | C39: 8448 | D39: 9252 | E39: 九、其他支出 | F39: 12258 | G39: =SUM(G40:G43) -> 111426 | H39: =SUM(H40:H43) -> 19560
A40: 其他缴入政府性基金的收入 | B40: 20000 | C40: 20000 | D40: 37000 | E40: 其他政府性基金支出 | F40: 12258 | G40: 9626 | H40: 19560
E41: 彩票发行机构业务费安排的支出 | G41: 35
E42: 彩票公益金安排的支出 | G42: 1565
E43: 专项债券安排的支出 | G43: =90160+10040 -> 100200
A45: 收入合计 | B45: 122083 | C45: 76083 | D45: =D35+D34+D29+D28+D18 -> 104387 | E45: 支出合计 | F45: =F39+F38+F35+F32+F31+F9+F8+F7+F6 -> 86683 | G45: =G39+G38+G35+G32+G31+G9+G8+G7+G6 -> 139251 | H45: =H39+H38+H35+H32+H31+H9+H8+H7+H6 -> 66987
A46: 转移性收入 | B46: 4600 | C46: 167120 | D46: =D47+D49+D50+D52+D51 -> 4600 | E46: 转移性支出 | F46: 40000 | G46: =G47+G49+G50+G51+G52 -> 103952 | H46: =H47+H49+H50+H51+H52 -> 42000
A47: 政府性基金转移收入 | B47: 4600 | C47: 18910 | D47: 4600 | E47: 政府性基金转移支付 | F47: 0 | H47: 0
A48: 政府性基金补助收入 | B48: 4600 | C48: 18910 | D48: 4600 | E48: 政府性基金上解支出
A49: 上年结余收入 | C49: 7810 | E49: 调出资金 | F49: 40000 | G49: 42000 | H49: 42000
A50: 地方政府专项债务转贷收入 | C50: =95500+37900 -> 133400 | E50: 地方政府专项债务转贷支出
A51: 地方政府专项再融资债券 | C51: 7000 | E51: 地方政府专项债务还本支出 | G51: 13150
A52: 调入资金 | E52: 年终结余 | G52: 48802
A53: 收入总计 | B53: 126683 | C53: =C46+C45 -> 243203 | D53: =D45+D46 -> 108987 | E53: 支出总计 | F53: 126683 | G53: =G45+G46 -> 243203 | H53: =H45+H46 -> 108987

Sheet 社会保险基金预算
A1: 附件3
A2: 2025年社会保险基金收支预算总表
I3: 单位：万元
A4: 项 目 | B4: 合计 | C4: 企业职工基本 养老保险基金 | D4: 城乡居民基本 养老保险基金 | E4: 机关事业单位基 本养老保险基金 | F4: 职工基本医疗保险 (含生育保险)基金 | G4: 城乡居民基本 医疗保险基金 | H4: 工伤保险基金 | I4: 失业保险基金
A5: 上年滚存结余 | B5: 120583 | D5: 117588 | E5: 2995
A6: 一、收入 | B6: 117598 | D6: 41060 | E6: 76538 | F6: 0 | G6: 0 | H6: 0 | I6: 0
A7: 其中:1.社会保险费收入 | B7: 46352 | D7: 20855 | E7: 25496 | F7: 0 | G7: 0 | H7: 0 | I7: 0
A8: 2.财政补贴收入 | B8: 70653 | D8: 19746 | E8: 50907 | F8: 0 | G8: 0 | H8: 0 | I8: 0
A9: 3.利息收入 | B9: 404 | D9: 376 | E9: 28 | F9: 0 | G9: 0 | H9: 0 | I9: 0
A10: 4.委托投资收益
A11: 5.转移收入 | B11: 144 | D11: 39 | E11: 105 | F11: 0 | I11: 0
A12: 6.其他收入 | B12: 45 | D12: 43 | E12: 2 | F12: 0 | G12: 0 | H12: 0 | I12: 0
A13: 7.全国统筹调剂资金收入（省级专用）
A14: 8.全国统筹调剂资金收入（中央专用)
A15: 二、支出 | B15: 100378 | D15: 23840 | E15: 76538 | F15: 0 | G15: 0 | H15: 0 | I15: 0
A16: 其中:1.社会保险待遇支出 | B16: 99843 | D16: 23319 | E16: 76524 | F16: 0 | G16: 0 | H16: 0 | I16: 0
A17: 2.转移支出 | B17: 525 | D17: 518 | E17: 7 | F17: 0 | I17: 0
A18: 3.其他支出 | B18: 10 | D18: 3 | E18: 7 | F18: 0 | G18: 0 | H18: 0 | I18: 0
A19: 4.全国统筹调剂资金支出（中央专用）
A20: 5.全国统筹调剂资金支出（省级专用）
A21: 三、本年收支结余 | B21: 17220 | D21: 17220 | E21: 0 | F21: 0 | G21: 0 | H21: 0 | I21: 0
A22: 四、年末滚存结余 | B22: 137803 | D22: 134808 | E22: 2995 | F22: 0 | G22: 0 | H22: 0 | I22: 0
